[Event "November 21 Early 2023"]
[Site "https://www.chess.com"]
[Date "2023.11.21"]
[Round "7"]
[White "elmusmolamas"]
[Black "Darmanin, Jake"]
[Result "1-0"]
[Board "104"]
[TimeControl "180+1"]
[BlackFideId "5601061"]
[WhiteElo "2545"]
[BlackElo "2119"]
[BlackTeam "MLT"]
[WhiteClock "0:01:04"]
[BlackClock "0:00:20"]

1. e4 {[%clk 0:02:58]}  e5 {[%clk 0:02:59]} 2. Nf3 {[%clk 0:02:56]}  Nc6 {[%clk 0:03:00]} 3. Bc4 {[%clk 0:02:57]}  Nf6 {[%clk 0:03:00]} 4. d3 {[%clk 0:02:57]}  h6 {[%clk 0:02:59]} 5. c3 {[%clk 0:02:54]}  d6 {[%clk 0:02:58]} 6. Bb3 {[%clk 0:02:54]}  Bd7 {[%clk 0:02:56]} 7. Nbd2 {[%clk 0:02:51]}  Qe7 {[%clk 0:02:55]} 8. Nc4 {[%clk 0:02:50]}  O-O-O {[%clk 0:02:54]} 9. Ne3 {[%clk 0:02:50]}  g6 {[%clk 0:02:51]} 10. a4 {[%clk 0:02:50]}  Bg7 {[%clk 0:02:49]} 11. a5 {[%clk 0:02:49]}  a6 {[%clk 0:02:49]} 12. Bc4 {[%clk 0:02:50]}  Qf8 {[%clk 0:02:32]} 13. b4 {[%clk 0:02:45]}  Ne7 {[%clk 0:02:29]} 14. Qb3 {[%clk 0:02:39]}  Ng4 {[%clk 0:02:10]} 15. b5 {[%clk 0:02:23]}  Bxb5 {[%clk 0:02:03]} 16. Bxb5 {[%clk 0:02:23]}  axb5 {[%clk 0:02:03]} 17. Qxb5 {[%clk 0:02:23]}  Nxe3 {[%clk 0:02:00]} 18. Bxe3 {[%clk 0:02:24]}  Qe8 {[%clk 0:01:55]} 19. Qb3 {[%clk 0:02:24]}  d5 {[%clk 0:01:43]} 20. O-O {[%clk 0:02:08]}  Qc6 {[%clk 0:01:39]} 21. Rfb1 {[%clk 0:02:03]}  dxe4 {[%clk 0:01:35]} 22. dxe4 {[%clk 0:02:04]}  Rhf8 {[%clk 0:01:20]} 23. a6 {[%clk 0:02:03]}  bxa6 {[%clk 0:01:12]} 24. Qb8+ {[%clk 0:02:01]}  Kd7 {[%clk 0:01:13]} 25. Rd1+ {[%clk 0:02:02]}  Nd5 {[%clk 0:00:55]} 26. Rxd5+ {[%clk 0:01:47]}  Qxd5 {[%clk 0:00:55]} 27. Qxd8+ {[%clk 0:01:48]}  Rxd8 {[%clk 0:00:55]} 28. exd5 {[%clk 0:01:49]}  Ra8 {[%clk 0:00:49]} 29. c4 {[%clk 0:01:41]}  Kd6 {[%clk 0:00:49]} 30. Ra5 {[%clk 0:01:31]}  g5 {[%clk 0:00:48]} 31. g4 {[%clk 0:01:27]}  c6 {[%clk 0:00:43]} 32. Nd2 {[%clk 0:01:16]}  cxd5 {[%clk 0:00:42]} 33. cxd5 {[%clk 0:01:16]}  f6 {[%clk 0:00:35]} 34. Nc4+ {[%clk 0:01:15]}  Kc7 {[%clk 0:00:33]} 35. Rc5+ {[%clk 0:01:09]}  Kb7 {[%clk 0:00:31]} 36. Nd6+ {[%clk 0:01:06]}  Kb6 {[%clk 0:00:20]} 37. Rc8+ {[%clk 0:01:04]} 1-0

[Event "November 21 Early 2023"]
[Site "https://www.chess.com"]
[Date "2023.11.21"]
[Round "7"]
[White "Deng, Henry"]
[Black "Spichkin, Alexander"]
[Result "1-0"]
[Board "105"]
[TimeControl "180+1"]
[WhiteFideId "30965454"]
[BlackFideId "4144074"]
[WhiteElo "2544"]
[BlackElo "1968"]
[WhiteTeam "USA"]
[BlackTeam "RUS"]
[WhiteClock "0:01:32"]
[BlackClock "0:01:22"]

1. e4 {[%clk 0:03:00]}  e5 {[%clk 0:02:44]} 2. Nf3 {[%clk 0:03:00]}  d5 {[%clk 0:02:43]} 3. exd5 {[%clk 0:02:52]}  e4 {[%clk 0:02:42]} 4. Qe2 {[%clk 0:02:51]}  Nf6 {[%clk 0:02:42]} 5. Nc3 {[%clk 0:02:51]}  Be7 {[%clk 0:02:42]} 6. Nxe4 {[%clk 0:02:41]}  Nxd5 {[%clk 0:02:41]} 7. Qb5+ {[%clk 0:02:20]}  c6 {[%clk 0:02:12]} 8. Qb3 {[%clk 0:02:02]}  O-O {[%clk 0:02:11]} 9. d3 {[%clk 0:02:02]}  Re8 {[%clk 0:02:09]} 10. Be2 {[%clk 0:02:02]}  Bb4+ {[%clk 0:01:53]} 11. c3 {[%clk 0:02:01]}  f5 {[%clk 0:01:51]} 12. cxb4 {[%clk 0:01:51]}  fxe4 {[%clk 0:01:51]} 13. dxe4 {[%clk 0:01:51]}  Rxe4 {[%clk 0:01:50]} 14. Qc2 {[%clk 0:01:40]}  Qe8 {[%clk 0:01:46]} 15. Ng5 {[%clk 0:01:38]}  Re5 {[%clk 0:01:39]} 16. Qxh7+ {[%clk 0:01:37]}  Kf8 {[%clk 0:01:39]} 17. Qh8+ {[%clk 0:01:37]}  Ke7 {[%clk 0:01:39]} 18. Qxg7+ {[%clk 0:01:34]}  Kd6 {[%clk 0:01:39]} 19. Nf7+ {[%clk 0:01:34]}  Kc7 {[%clk 0:01:31]} 20. Qxe5+ {[%clk 0:01:34]}  Qxe5 {[%clk 0:01:31]} 21. Nxe5 {[%clk 0:01:35]}  Nxb4 {[%clk 0:01:31]} 22. O-O {[%clk 0:01:34]}  Nc2 {[%clk 0:01:29]} 23. Rb1 {[%clk 0:01:34]}  Bf5 {[%clk 0:01:29]} 24. Bf4 {[%clk 0:01:33]}  Kb6 {[%clk 0:01:30]} 25. Bd3 {[%clk 0:01:33]}  Bxd3 {[%clk 0:01:26]} 26. Nxd3 {[%clk 0:01:33]}  Nd7 {[%clk 0:01:27]} 27. Rfc1 {[%clk 0:01:32]}  Nd4 {[%clk 0:01:22]} 28. Be3 {[%clk 0:01:32]} 1-0

[Event "November 21 Early 2023"]
[Site "https://www.chess.com"]
[Date "2023.11.21"]
[Round "7"]
[White "Marchesich, Giovanni"]
[Black "Gavrilov, Maxim"]
[Result "1-0"]
[Board "106"]
[TimeControl "180+1"]
[WhiteFideId "2824790"]
[BlackFideId "24271454"]
[WhiteElo "2198"]
[BlackElo "2157"]
[WhiteTeam "ITA"]
[BlackTeam "RUS"]
[WhiteClock "0:00:51"]
[BlackClock "0:00:01"]

1. e4 {[%clk 0:03:00]}  c5 {[%clk 0:02:59]} 2. Nf3 {[%clk 0:03:00]}  d6 {[%clk 0:03:00]} 3. d4 {[%clk 0:03:01]}  cxd4 {[%clk 0:03:01]} 4. Nxd4 {[%clk 0:03:02]}  Nf6 {[%clk 0:03:01]} 5. Nc3 {[%clk 0:03:02]}  a6 {[%clk 0:03:02]} 6. Bc4 {[%clk 0:03:03]}  e6 {[%clk 0:03:02]} 7. Bb3 {[%clk 0:03:03]}  Be7 {[%clk 0:03:00]} 8. g4 {[%clk 0:03:02]}  Nc6 {[%clk 0:02:55]} 9. g5 {[%clk 0:03:00]}  Nxd4 {[%clk 0:02:32]} 10. Qxd4 {[%clk 0:02:50]}  Nh5 {[%clk 0:02:19]} 11. Rg1 {[%clk 0:02:48]}  b5 {[%clk 0:02:05]} 12. Be3 {[%clk 0:02:46]}  Bb7 {[%clk 0:02:03]} 13. O-O-O {[%clk 0:02:45]}  Rc8 {[%clk 0:02:00]} 14. Kb1 {[%clk 0:02:45]}  Qa5 {[%clk 0:01:51]} 15. f4 {[%clk 0:02:40]}  b4 {[%clk 0:01:39]} 16. Na4 {[%clk 0:02:36]}  Bc6 {[%clk 0:01:25]} 17. Nb6 {[%clk 0:02:36]}  Rd8 {[%clk 0:01:21]} 18. Nc4 {[%clk 0:02:30]}  Qc7 {[%clk 0:01:17]} 19. f5 {[%clk 0:02:22]}  e5 {[%clk 0:01:11]} 20. Qd2 {[%clk 0:02:15]}  a5 {[%clk 0:01:10]} 21. Bb6 {[%clk 0:02:13]}  Qb8 {[%clk 0:01:08]} 22. Bxd8 {[%clk 0:02:14]}  Kxd8 {[%clk 0:01:08]} 23. Nxd6 {[%clk 0:02:10]}  Bxd6 {[%clk 0:01:03]} 24. Qxd6+ {[%clk 0:02:11]}  Qxd6 {[%clk 0:01:03]} 25. Rxd6+ {[%clk 0:02:12]}  Kc7 {[%clk 0:01:04]} 26. Rd2 {[%clk 0:02:08]}  Bxe4 {[%clk 0:01:04]} 27. Bxf7 {[%clk 0:02:06]}  Nf4 {[%clk 0:01:03]} 28. f6 {[%clk 0:02:05]}  gxf6 {[%clk 0:01:03]} 29. gxf6 {[%clk 0:02:06]}  Rf8 {[%clk 0:01:03]} 30. Bc4 {[%clk 0:01:52]}  Rxf6 {[%clk 0:01:01]} 31. Re1 {[%clk 0:01:52]}  Bc6 {[%clk 0:00:41]} 32. Rxe5 {[%clk 0:01:47]}  Kb6 {[%clk 0:00:42]} 33. a3 {[%clk 0:01:44]}  bxa3 {[%clk 0:00:40]} 34. bxa3 {[%clk 0:01:44]}  h5 {[%clk 0:00:37]} 35. Rf2 {[%clk 0:01:41]}  h4 {[%clk 0:00:37]} 36. Rg5 {[%clk 0:01:31]}  h3 {[%clk 0:00:29]} 37. Rg4 {[%clk 0:01:31]}  Nd5 {[%clk 0:00:29]} 38. Rxf6 {[%clk 0:01:29]}  Nxf6 {[%clk 0:00:30]} 39. Rh4 {[%clk 0:01:29]}  Kc5 {[%clk 0:00:27]} 40. Be6 {[%clk 0:01:27]}  Ne4 {[%clk 0:00:23]} 41. Bxh3 {[%clk 0:01:23]}  Nd2+ {[%clk 0:00:22]} 42. Kb2 {[%clk 0:01:18]}  Nc4+ {[%clk 0:00:21]} 43. Rxc4+ {[%clk 0:01:15]}  Kxc4 {[%clk 0:00:21]} 44. Be6+ {[%clk 0:01:14]}  Kd4 {[%clk 0:00:20]} 45. h4 {[%clk 0:01:13]}  Ke5 {[%clk 0:00:16]} 46. Bg4 {[%clk 0:01:13]}  Kf4 {[%clk 0:00:16]} 47. Bd1 {[%clk 0:01:10]}  Be4 {[%clk 0:00:16]} 48. h5 {[%clk 0:01:10]}  Ke5 {[%clk 0:00:16]} 49. Kb3 {[%clk 0:01:09]}  Kd4 {[%clk 0:00:16]} 50. Ka4 {[%clk 0:01:07]}  Kc5 {[%clk 0:00:14]} 51. Kxa5 {[%clk 0:01:06]}  Bf5 {[%clk 0:00:11]} 52. a4 {[%clk 0:01:02]}  Be4 {[%clk 0:00:10]} 53. c3 {[%clk 0:01:02]}  Bf5 {[%clk 0:00:09]} 54. Be2 {[%clk 0:01:01]}  Be4 {[%clk 0:00:09]} 55. Ka6 {[%clk 0:01:01]}  Kc6 {[%clk 0:00:07]} 56. a5 {[%clk 0:01:01]}  Kc5 {[%clk 0:00:07]} 57. Bb5 {[%clk 0:00:55]}  Bf3 {[%clk 0:00:04]} 58. Be8 {[%clk 0:00:52]}  Be4 {[%clk 0:00:04]} 59. Bg6 {[%clk 0:00:51]}  Bc6 {[%clk 0:00:02]} 60. h6 {[%clk 0:00:51]}  Kd6 {[%clk 0:00:01]} 61. h7 {[%clk 0:00:51]} 1-0

[Event "November 21 Early 2023"]
[Site "https://www.chess.com"]
[Date "2023.11.21"]
[Round "7"]
[White "Zaksaite, Salomeja"]
[Black "Baches Garcia, Guillermo"]
[Result "1/2-1/2"]
[Board "111"]
[TimeControl "180+1"]
[WhiteFideId "12801496"]
[BlackFideId "2209764"]
[WhiteElo "2065"]
[BlackElo "2522"]
[WhiteTeam "LTU"]
[BlackTeam "ESP"]
[WhiteClock "0:00:04"]
[BlackClock "0:00:10"]

1. d4 {[%clk 0:03:00]}  d5 {[%clk 0:02:59]} 2. e3 {[%clk 0:03:01]}  Nf6 {[%clk 0:02:57]} 3. Nf3 {[%clk 0:02:56]}  e6 {[%clk 0:02:57]} 4. Nbd2 {[%clk 0:02:52]}  Bd6 {[%clk 0:02:55]} 5. Ne5 {[%clk 0:02:49]}  c5 {[%clk 0:02:51]} 6. c3 {[%clk 0:02:48]}  Qc7 {[%clk 0:02:44]} 7. f4 {[%clk 0:02:48]}  O-O {[%clk 0:02:44]} 8. Bd3 {[%clk 0:02:47]}  b6 {[%clk 0:02:43]} 9. O-O {[%clk 0:02:17]}  Ba6 {[%clk 0:02:39]} 10. Bxa6 {[%clk 0:02:16]}  Nxa6 {[%clk 0:02:40]} 11. g4 {[%clk 0:02:09]}  Ne4 {[%clk 0:02:30]} 12. Nxe4 {[%clk 0:02:04]}  dxe4 {[%clk 0:02:31]} 13. Qe2 {[%clk 0:01:57]}  Qb7 {[%clk 0:02:23]} 14. Bd2 {[%clk 0:01:55]}  f6 {[%clk 0:02:16]} 15. Nc4 {[%clk 0:01:53]}  Be7 {[%clk 0:02:14]} 16. Be1 {[%clk 0:01:50]}  Nc7 {[%clk 0:02:11]} 17. f5 {[%clk 0:01:46]}  exf5 {[%clk 0:02:00]} 18. Rxf5 {[%clk 0:01:43]}  cxd4 {[%clk 0:01:56]} 19. exd4 {[%clk 0:01:35]}  Rae8 {[%clk 0:01:52]} 20. Ne3 {[%clk 0:01:32]}  g6 {[%clk 0:01:46]} 21. Rf1 {[%clk 0:01:25]}  Bd6 {[%clk 0:01:45]} 22. Bh4 {[%clk 0:01:23]}  Kg7 {[%clk 0:01:40]} 23. Nc4 {[%clk 0:01:12]}  Qd5 {[%clk 0:01:26]} 24. Nxd6 {[%clk 0:01:11]}  Qxd6 {[%clk 0:01:26]} 25. Bg3 {[%clk 0:01:10]}  Qd7 {[%clk 0:01:25]} 26. Rad1 {[%clk 0:00:59]}  Nd5 {[%clk 0:01:13]} 27. c4 {[%clk 0:00:57]}  Nb4 {[%clk 0:01:12]} 28. d5 {[%clk 0:00:42]}  Nd3 {[%clk 0:01:10]} 29. b3 {[%clk 0:00:29]}  Re7 {[%clk 0:00:55]} 30. d6 {[%clk 0:00:21]}  Re6 {[%clk 0:00:54]} 31. Qe3 {[%clk 0:00:18]}  Rfe8 {[%clk 0:00:50]} 32. Qd4 {[%clk 0:00:17]}  Nc5 {[%clk 0:00:26]} 33. b4 {[%clk 0:00:16]}  e3 {[%clk 0:00:25]} 34. bxc5 {[%clk 0:00:16]}  bxc5 {[%clk 0:00:21]} 35. Qxc5 {[%clk 0:00:14]}  e2 {[%clk 0:00:21]} 36. Qc7 {[%clk 0:00:11]}  exf1=Q+ {[%clk 0:00:18]} 37. Rxf1 {[%clk 0:00:12]}  Qxc7 {[%clk 0:00:16]} 38. dxc7 {[%clk 0:00:12]}  Rc6 {[%clk 0:00:14]} 39. Rd1 {[%clk 0:00:10]}  Rxc4 {[%clk 0:00:11]} 40. Rd7+ {[%clk 0:00:10]}  Kg8 {[%clk 0:00:10]} 41. Rd8 {[%clk 0:00:10]}  Kf7 {[%clk 0:00:10]} 42. Rd7+ {[%clk 0:00:11]}  Ke6 {[%clk 0:00:07]} 43. Rxh7 {[%clk 0:00:11]}  Rc8 {[%clk 0:00:07]} 44. h3 {[%clk 0:00:09]}  Rc2 {[%clk 0:00:06]} 45. a4 {[%clk 0:00:09]}  a5 {[%clk 0:00:04]} 46. h4 {[%clk 0:00:08]}  Rc4 {[%clk 0:00:05]} 47. g5 {[%clk 0:00:05]}  fxg5 {[%clk 0:00:04]} 48. hxg5 {[%clk 0:00:05]}  Rg4 {[%clk 0:00:05]} 49. Kg2 {[%clk 0:00:05]}  Rxg5 {[%clk 0:00:05]} 50. Kf3 {[%clk 0:00:05]}  Rc5 {[%clk 0:00:06]} 51. Rg7 {[%clk 0:00:05]}  Rc3+ {[%clk 0:00:06]} 52. Kg4 {[%clk 0:00:05]}  Kf6 {[%clk 0:00:07]} 53. Rd7 {[%clk 0:00:04]}  Rc4+ {[%clk 0:00:07]} 54. Kf3 {[%clk 0:00:04]}  Ke6 {[%clk 0:00:07]} 55. Rd6+ {[%clk 0:00:04]}  Ke7 {[%clk 0:00:07]} 56. Rxg6 {[%clk 0:00:03]}  Rxa4 {[%clk 0:00:07]} 57. Rb6 {[%clk 0:00:03]}  Kd7 {[%clk 0:00:06]} 58. Rb8 {[%clk 0:00:03]}  Rc4 {[%clk 0:00:06]} 59. Rb5 {[%clk 0:00:02]}  a4 {[%clk 0:00:06]} 60. Ra5 {[%clk 0:00:02]}  Rc3+ {[%clk 0:00:06]} 61. Kf2 {[%clk 0:00:02]}  a3 {[%clk 0:00:06]} 62. Be5 {[%clk 0:00:02]}  Rc2+ {[%clk 0:00:06]} 63. Ke3 {[%clk 0:00:02]}  a2 {[%clk 0:00:06]} 64. Kd3 {[%clk 0:00:03]}  R8xc7 {[%clk 0:00:06]} 65. Bxc7 {[%clk 0:00:02]}  Rxc7 {[%clk 0:00:07]} 66. Rxa2 {[%clk 0:00:02]}  Rc6 {[%clk 0:00:08]} 67. Kd4 {[%clk 0:00:02]}  Rd6+ {[%clk 0:00:09]} 68. Ke5 {[%clk 0:00:03]}  Re6+ {[%clk 0:00:09]} 69. Kd5 {[%clk 0:00:03]}  Rd6+ {[%clk 0:00:10]} 70. Ke5 {[%clk 0:00:04]}  Re6+ {[%clk 0:00:10]} 71. Kd5 {[%clk 0:00:04]}  Rd6+ {[%clk 0:00:10]} 72. Ke5 {[%clk 0:00:04]} 1/2-1/2

[Event "November 21 Early 2023"]
[Site "https://www.chess.com"]
[Date "2023.11.21"]
[Round "7"]
[White "Erzhanov, Arman"]
[Black "Matthes, Aaron"]
[Result "1-0"]
[Board "115"]
[TimeControl "180+1"]
[WhiteFideId "4138821"]
[BlackFideId "16227310"]
[WhiteElo "2171"]
[BlackElo "2367"]
[WhiteTeam "KAZ"]
[BlackTeam "GER"]
[WhiteClock "0:01:21"]
[BlackClock "0:00:35"]

1. e4 {[%clk 0:03:00]}  c6 {[%clk 0:02:55]} 2. d4 {[%clk 0:02:59]}  d5 {[%clk 0:02:56]} 3. exd5 {[%clk 0:02:59]}  cxd5 {[%clk 0:02:57]} 4. Bd3 {[%clk 0:03:00]}  Nf6 {[%clk 0:02:56]} 5. c3 {[%clk 0:03:01]}  Nc6 {[%clk 0:02:55]} 6. h3 {[%clk 0:03:01]}  g6 {[%clk 0:02:52]} 7. Nf3 {[%clk 0:03:01]}  Bg7 {[%clk 0:02:53]} 8. O-O {[%clk 0:03:01]}  O-O {[%clk 0:02:53]} 9. Qc2 {[%clk 0:03:01]}  Be6 {[%clk 0:02:50]} 10. Re1 {[%clk 0:03:01]}  Qd7 {[%clk 0:02:49]} 11. Bb5 {[%clk 0:02:30]}  Bf5 {[%clk 0:02:46]} 12. Qd1 {[%clk 0:02:24]}  Bxb1 {[%clk 0:02:43]} 13. Rxb1 {[%clk 0:02:24]}  e6 {[%clk 0:02:42]} 14. Bf4 {[%clk 0:02:21]}  a6 {[%clk 0:02:39]} 15. Ne5 {[%clk 0:02:18]}  Qc8 {[%clk 0:02:38]} 16. Bd3 {[%clk 0:02:15]}  Nxe5 {[%clk 0:02:27]} 17. Bxe5 {[%clk 0:02:16]}  Nd7 {[%clk 0:02:26]} 18. Bh2 {[%clk 0:02:10]}  b5 {[%clk 0:02:24]} 19. h4 {[%clk 0:02:10]}  Rb8 {[%clk 0:02:22]} 20. a3 {[%clk 0:02:10]}  a5 {[%clk 0:02:19]} 21. Bxb8 {[%clk 0:02:09]}  Qxb8 {[%clk 0:02:17]} 22. Qe2 {[%clk 0:02:07]}  b4 {[%clk 0:02:16]} 23. axb4 {[%clk 0:02:08]}  axb4 {[%clk 0:02:16]} 24. Red1 {[%clk 0:02:04]}  Qc7 {[%clk 0:02:06]} 25. Rbc1 {[%clk 0:02:03]}  Rb8 {[%clk 0:02:04]} 26. h5 {[%clk 0:02:02]}  Qb6 {[%clk 0:01:54]} 27. hxg6 {[%clk 0:01:57]}  hxg6 {[%clk 0:01:52]} 28. Qg4 {[%clk 0:01:54]}  Bh6 {[%clk 0:01:41]} 29. Rc2 {[%clk 0:01:53]}  Bg7 {[%clk 0:01:33]} 30. g3 {[%clk 0:01:52]}  Nf6 {[%clk 0:01:31]} 31. Qf4 {[%clk 0:01:52]}  Ra8 {[%clk 0:01:26]} 32. Kg2 {[%clk 0:01:51]}  Ra2 {[%clk 0:01:24]} 33. Qd2 {[%clk 0:01:44]}  Ng4 {[%clk 0:01:17]} 34. Be2 {[%clk 0:01:39]}  b3 {[%clk 0:01:08]} 35. Rcc1 {[%clk 0:01:37]}  Bh6 {[%clk 0:01:09]} 36. f4 {[%clk 0:01:29]}  Nf6 {[%clk 0:01:04]} 37. Bd3 {[%clk 0:01:25]}  Bf8 {[%clk 0:00:52]} 38. Bb1 {[%clk 0:01:22]}  Ra8 {[%clk 0:00:49]} 39. Rh1 {[%clk 0:01:22]}  Bg7 {[%clk 0:00:47]} 40. Qe2 {[%clk 0:01:23]}  Nh5 {[%clk 0:00:43]} 41. Rxh5 {[%clk 0:01:22]}  gxh5 {[%clk 0:00:42]} 42. Qxh5 {[%clk 0:01:23]}  Qb5 {[%clk 0:00:40]} 43. Re1 {[%clk 0:01:22]}  Ra1 {[%clk 0:00:40]} 44. Bh7+ {[%clk 0:01:21]}  Kf8 {[%clk 0:00:39]} 45. Rxa1 {[%clk 0:01:22]}  Qd3 {[%clk 0:00:35]} 46. Bxd3 {[%clk 0:01:21]} 1-0

[Event "November 21 Early 2023"]
[Site "https://www.chess.com"]
[Date "2023.11.21"]
[Round "7"]
[White "Palacio,Igor Da Paz"]
[Black "Kochiev, Ivan"]
[Result "1-0"]
[Board "117"]
[TimeControl "180+1"]
[WhiteFideId "2121140"]
[BlackFideId "2917890"]
[WhiteElo "2126"]
[BlackElo "2285"]
[WhiteTeam "BRA"]
[BlackTeam "BUL"]
[WhiteClock "0:00:08"]
[BlackClock "0:00:04"]

1. e4 {[%clk 0:03:00]}  c5 {[%clk 0:02:58]} 2. Nc3 {[%clk 0:03:00]}  Nc6 {[%clk 0:02:58]} 3. g3 {[%clk 0:03:00]}  g6 {[%clk 0:02:57]} 4. d3 {[%clk 0:03:01]}  Bg7 {[%clk 0:02:57]} 5. Bg2 {[%clk 0:02:59]}  Nf6 {[%clk 0:02:56]} 6. f4 {[%clk 0:02:59]}  d6 {[%clk 0:02:53]} 7. Nf3 {[%clk 0:02:59]}  O-O {[%clk 0:02:49]} 8. O-O {[%clk 0:02:58]}  Bg4 {[%clk 0:02:49]} 9. h3 {[%clk 0:02:58]}  Bxf3 {[%clk 0:02:49]} 10. Bxf3 {[%clk 0:02:55]}  Nd7 {[%clk 0:02:47]} 11. Rb1 {[%clk 0:02:53]}  Rb8 {[%clk 0:02:44]} 12. Be3 {[%clk 0:02:47]}  Nd4 {[%clk 0:02:39]} 13. Bg2 {[%clk 0:02:43]}  b5 {[%clk 0:02:39]} 14. a3 {[%clk 0:02:43]}  a5 {[%clk 0:02:22]} 15. Ne2 {[%clk 0:02:43]}  b4 {[%clk 0:02:18]} 16. axb4 {[%clk 0:02:40]}  axb4 {[%clk 0:02:17]} 17. Qd2 {[%clk 0:02:36]}  Qb6 {[%clk 0:02:02]} 18. Kh2 {[%clk 0:02:25]}  f5 {[%clk 0:01:26]} 19. exf5 {[%clk 0:02:19]}  Nxf5 {[%clk 0:01:23]} 20. Bf2 {[%clk 0:02:08]}  e5 {[%clk 0:01:18]} 21. fxe5 {[%clk 0:02:00]}  Nxe5 {[%clk 0:01:16]} 22. Nf4 {[%clk 0:01:57]}  Ne7 {[%clk 0:01:10]} 23. Ne6 {[%clk 0:01:53]}  Rf7 {[%clk 0:01:06]} 24. Nxg7 {[%clk 0:01:52]}  Kxg7 {[%clk 0:01:07]} 25. Bg1 {[%clk 0:01:46]}  Rbf8 {[%clk 0:01:04]} 26. Rxf7+ {[%clk 0:01:46]}  Rxf7 {[%clk 0:01:05]} 27. Qe2 {[%clk 0:01:43]}  Nf5 {[%clk 0:00:58]} 28. Bd5 {[%clk 0:01:31]}  Re7 {[%clk 0:00:52]} 29. Rf1 {[%clk 0:01:10]}  h5 {[%clk 0:00:43]} 30. Qd2 {[%clk 0:01:00]}  Nf7 {[%clk 0:00:11]} 31. c3 {[%clk 0:00:35]}  bxc3 {[%clk 0:00:08]} 32. bxc3 {[%clk 0:00:34]}  Qd8 {[%clk 0:00:08]} 33. d4 {[%clk 0:00:28]}  cxd4 {[%clk 0:00:07]} 34. cxd4 {[%clk 0:00:29]}  Qe8 {[%clk 0:00:06]} 35. Rf2 {[%clk 0:00:20]}  Re3 {[%clk 0:00:03]} 36. Bxf7 {[%clk 0:00:14]}  Qxf7 {[%clk 0:00:02]} 37. Rxf5 {[%clk 0:00:12]}  Qxf5 {[%clk 0:00:03]} 38. Qxe3 {[%clk 0:00:12]}  Qc2+ {[%clk 0:00:03]} 39. Qf2 {[%clk 0:00:12]}  Qe4 {[%clk 0:00:03]} 40. Qe3 {[%clk 0:00:11]}  Qd5 {[%clk 0:00:03]} 41. Bf2 {[%clk 0:00:12]}  Qf7 {[%clk 0:00:02]} 42. Qf4 {[%clk 0:00:11]}  Qd5 {[%clk 0:00:02]} 43. Qe3 {[%clk 0:00:11]}  Qa2 {[%clk 0:00:02]} 44. Kg2 {[%clk 0:00:11]}  Qd5+ {[%clk 0:00:02]} 45. Qf3 {[%clk 0:00:11]}  Qc4 {[%clk 0:00:02]} 46. d5 {[%clk 0:00:11]}  Qa2 {[%clk 0:00:01]} 47. h4 {[%clk 0:00:11]}  Qc4 {[%clk 0:00:02]} 48. Kh2 {[%clk 0:00:09]}  Qc7 {[%clk 0:00:02]} 49. Qe3 {[%clk 0:00:09]}  Qc2 {[%clk 0:00:03]} 50. Qd4+ {[%clk 0:00:09]}  Kg8 {[%clk 0:00:03]} 51. Qf4 {[%clk 0:00:07]}  Kg7 {[%clk 0:00:02]} 52. Kg2 {[%clk 0:00:06]}  Qd3 {[%clk 0:00:02]} 53. Qf3 {[%clk 0:00:04]}  Qd2 {[%clk 0:00:01]} 54. Kg1 {[%clk 0:00:04]}  Qc1+ {[%clk 0:00:02]} 55. Kh2 {[%clk 0:00:04]}  Qd2 {[%clk 0:00:02]} 56. Qf4 {[%clk 0:00:04]}  Qxd5 {[%clk 0:00:03]} 57. Qd4+ {[%clk 0:00:04]}  Qxd4 {[%clk 0:00:02]} 58. Bxd4+ {[%clk 0:00:05]}  Kf7 {[%clk 0:00:03]} 59. Kg2 {[%clk 0:00:06]}  Ke6 {[%clk 0:00:04]} 60. Kf3 {[%clk 0:00:06]}  Kf5 {[%clk 0:00:04]} 61. Bg7 {[%clk 0:00:04]}  Ke6 {[%clk 0:00:03]} 62. Bf8 {[%clk 0:00:04]}  Kd5 {[%clk 0:00:03]} 63. Kf4 {[%clk 0:00:04]}  Kc5 {[%clk 0:00:02]} 64. Kg5 {[%clk 0:00:05]}  Kd5 {[%clk 0:00:02]} 65. Kxg6 {[%clk 0:00:05]}  Ke5 {[%clk 0:00:03]} 66. Kxh5 {[%clk 0:00:05]}  d5 {[%clk 0:00:04]} 67. g4 {[%clk 0:00:04]}  Ke4 {[%clk 0:00:02]} 68. Bb4 {[%clk 0:00:05]}  d4 {[%clk 0:00:03]} 69. g5 {[%clk 0:00:05]}  Kd3 {[%clk 0:00:03]} 70. g6 {[%clk 0:00:06]}  Kc4 {[%clk 0:00:04]} 71. Ba5 {[%clk 0:00:06]}  Kb5 {[%clk 0:00:04]} 72. Be1 {[%clk 0:00:06]}  d3 {[%clk 0:00:04]} 73. g7 {[%clk 0:00:07]}  d2 {[%clk 0:00:04]} 74. Bxd2 {[%clk 0:00:08]} 1-0